bitfinex-derivatives/quotes_SOLF0:USTF0_20240924
["timestamp","ask_amount","ask_price","bid_price","bid_amount"]
[1727193423616,13.16,145.94,145.85,1.3967]
[1727193424122,13.16,145.94,145.89,3.4272]
[1727193425610,13.16,145.94,145.9,3.4271]
[1727193425918,13.16,145.92,145.85,1.3967]
[1727193426408,13.16,145.92,145.89,3.4272]
[1727193426925,13.16,145.92,145.85,1.3967]
[1727193427620,13.16,145.92,145.89,3.4271]
[1727193428119,13.16,145.9,145.87,3.4277]
[1727193429418,13.16,145.9,145.86,3.4279]
[1727193429718,13.16,145.88,145.85,1.3967]
[1727193430919,13.16,145.88,145.86,3.4279]
[1727193433727,13.16,145.87,145.85,3.4282]
[1727193435125,13.16,145.87,145.84,3.4284]
[1727193436119,13.16,145.85,145.8,1.4255]
[1727193436318,6.03636932,145.92,145.8,1.4255]
[1727193436319,13.16,145.83,145.8,1.4255]
[1727193436530,13.16,145.85,145.8,1.4255]
[1727193436921,13.16,145.85,145.84,3.4285]
[1727193437319,13.16,145.87,145.86,3.4281]
[1727193437524,13.16,145.89,145.8,1.4255]
[1727193438123,13.16,145.89,145.86,3.4278]
[1727193438936,13.16,145.9,145.8,14.5855]
[1727193439437,116.03,146.0,145.82,13.16]
[1727193439622,13.16,145.91,145.83,2.8431]
[1727193440427,13.16,145.91,145.87,3.4277]
[1727193442533,13.16,145.89,145.86,3.4279]
[1727193442723,13.16,145.89,145.83,2.8431]
[1727193442924,13.16,145.88,145.8,1.4255]
[1727193443127,13.16,145.85,145.83,3.4287]
[1727193443333,13.16,145.85,145.8,1.4255]
[1727193444143,13.16,145.83,145.8,1.4255]
[1727193444436,13.16,145.83,145.81,3.4291]
[1727193445143,13.16,145.83,145.8,1.4255]
[1727193445144,13.16,145.82,145.8,3.4294]
[1727193445834,13.16,145.82,145.79,3.4296]
[1727193446132,13.16,145.82,145.76,7.0221032]
[1727193446335,13.16,145.82,145.77,3.4301]
[1727193446633,13.16,145.82,145.75,2.7568]
[1727193446634,13.16,145.79,145.75,2.7568]
[1727193447234,13.16,145.79,145.77,4.74159356]
[1727193448837,13.16,145.79,145.78,3.4299]
[1727193449341,13.16,145.81,145.78,3.4299]
[1727193449838,13.16,145.81,145.79,3.4297]
[1727193451224,82.32,145.93,145.79,3.4297]
[1727193451432,13.16,145.81,145.79,3.4297]
[1727193453432,13.16,145.81,145.75,1.3596]
[1727193455855,13.16,145.81,145.77,3.43]
[1727193457639,13.16,145.81,145.78,3.4299]
[1727193458942,13.16,145.83,145.75,14.5196]
[1727193459543,13.16,145.83,145.8,3.4294]
[1727193459942,1.3615,145.9,145.76,13.16]
[1727193459943,13.16,145.85,145.76,13.16]
[1727193460149,13.16,145.85,145.83,3.4288]
[1727193460746,13.16,145.85,145.82,3.4289]
[1727193465237,13.16,145.85,145.77,1.4188]
[1727193465444,13.16,145.83,145.77,1.4188]
[1727193466345,13.16,145.83,145.81,3.4292]
[1727193466546,13.16,145.83,145.77,1.4188]
[1727193466942,13.16,145.83,145.8,3.4293]
[1727193467545,13.16,145.86,145.79,3.4297]
[1727193467741,13.16,145.81,145.79,3.4297]
[1727193469141,13.16,145.81,145.78,3.4298]
[1727193469752,13.16,145.8,145.75,1.3596]
[1727193470555,13.16,145.78,145.76,3.4303]
[1727193470847,13.16,145.78,145.75,3.4305]
[1727193473951,13.16,145.76,145.73,3.431]
[1727193474453,13.16,145.76,145.71,1.3577]
[1727193476053,13.16,145.76,145.73,3.4309]
[1727193476656,13.16,145.74,145.72,3.4313]
[1727193477047,13.16,145.74,145.7,3.4317]
[1727193477247,13.16,145.79,145.7,3.4317]
[1727193477248,13.16,145.72,145.7,3.4317]
[1727193477449,13.16,145.72,145.69,1.3072]
[1727193478051,13.16,145.72,145.7,3.4318]
[1727193479462,13.16,145.72,145.67,3.4325]
[1727193479755,13.16,145.7,145.65,4.0198]
[1727193480261,13.16,145.7,145.68,3.4323]
[1727193480757,13.16,145.7,145.69,3.4321]
[1727193481766,13.16,145.71,145.7,3.4317]
[1727193482364,13.16,145.73,145.65,4.0198]
[1727193482555,13.16,145.71,145.65,4.0198]
[1727193482759,13.16,145.69,145.67,3.4324]
[1727193483272,13.16,145.71,145.65,3.4329]
[1727193483460,13.16,145.68,145.65,3.4329]
[1727193483658,13.16,145.71,145.6,3.9827]
[1727193483659,13.16,145.66,145.6,3.9827]
[1727193483862,13.16,145.66,145.63,3.4334]
[1727193484068,13.16,145.67,145.6,3.9827]
[1727193484271,13.16,145.67,145.66,3.4328]
[1727193485470,13.16,145.69,145.6,3.9827]
[1727193486065,13.16,145.69,145.66,3.4326]
[1727193486266,13.16,145.69,145.6,3.9827]
[1727193486565,13.16,145.69,145.61,13.16]
[1727193486967,13.16,145.69,145.68,3.4323]
[1727193488571,13.16,145.71,145.69,3.432]
[1727193489779,13.16,145.71,145.68,3.4322]
[1727193492080,13.16,145.71,145.69,3.4321]
[1727193492582,8.43,145.7,145.69,3.4321]
[1727193493282,8.43,145.7,145.68,3.4322]
[1727193493485,8.43,145.69,145.68,3.4322]
[1727193497185,8.43,145.69,145.6,10.851]
[1727193497386,8.43,145.65,145.6,19.281]
[1727193497580,8.43,145.66,145.61,8.43]
[1727193498183,8.43,145.66,145.65,3.433]
[1727193498584,8.43,145.67,145.62,8.43]
[1727193498787,8.43,145.67,145.66,3.4328]
[1727193499188,8.43,145.69,145.63,8.43]
[1727193499390,8.43,145.69,145.68,3.4323]
[1727193499692,8.43,145.69,145.6,10.851]
[1727193499693,1.3214,145.76,145.65,8.43]
[1727193499993,8.43,145.7,145.69,3.4321]
[1727193500395,13.18,145.72,145.7,3.4317]
[1727193500894,13.18,145.74,145.65,16.53256542]
[1727193501084,13.18,145.74,145.66,4.2095]
[1727193502089,13.18,145.72,145.66,4.2095]
[1727193502285,13.18,145.75,145.71,3.4316]
[1727193502587,13.18,145.75,145.66,4.2095]
[1727193502788,13.18,145.75,145.72,3.4311]
[1727193505391,13.18,145.75,145.71,3.4315]
[1727193505897,13.18,145.75,145.66,4.2095]
[1727193506097,13.18,145.75,145.72,3.4312]
[1727193506294,13.18,145.75,145.66,17.3895]
[1727193506695,13.18,145.77,145.66,17.3895]
[1727193506995,13.18,145.77,145.68,13.18]
[1727193507201,13.18,145.77,145.75,3.4306]
[1727193510600,13.18,145.77,145.76,3.4304]
[1727193511095,13.18,145.77,145.68,13.18]
[1727193511296,13.18,145.75,145.67,13.18]
[1727193511899,13.18,145.75,145.74,3.4309]
[1727193512196,13.18,145.77,145.67,13.18]
[1727193512399,13.18,145.77,145.75,3.4306]
[1727193513192,13.18,145.79,145.69,13.18]
[1727193513494,13.18,145.79,145.7,13.18]
[1727193514197,13.18,145.77,145.75,3.4305]
[1727193514895,13.18,145.77,145.68,20.0446]
[1727193515294,13.18,145.75,145.68,6.8646]
[1727193515696,13.18,145.74,145.66,4.2095]
[1727193515896,13.18,145.74,145.72,3.4312]
[1727193516093,13.18,145.75,145.66,17.3895]
[1727193517198,13.18,145.75,145.73,3.431]
[1727193517403,13.18,145.75,145.66,17.3895]
[1727193518697,13.18,145.75,145.73,3.431]
[1727193519197,13.18,145.75,145.74,3.4309]
[1727193519500,13.18,145.79,145.68,13.18]
[1727193520093,13.18,145.79,145.7,13.18]
[1727193521907,13.18,145.79,145.75,3.4305]
[1727193522103,13.18,145.77,145.68,20.0443]
[1727193522306,13.18,145.77,145.66,17.3895]
[1727193523608,13.18,145.77,145.74,3.4308]
[1727193524809,13.18,145.77,145.66,17.3895]
[1727193525606,13.18,145.79,145.68,13.18]
[1727193527411,13.18,145.77,145.68,13.18]
[1727193528315,13.18,145.77,145.74,3.4307]
[1727193528618,13.18,145.77,145.68,13.18]
[1727193529915,13.18,145.77,145.74,3.4307]
[1727193532323,8.44,145.75,145.7,8.44]
[1727193533819,8.44,145.75,145.74,3.4309]
[1727193538321,8.44,145.75,145.69,8.44]
[1727193538619,8.44,145.75,145.7,8.44]
[1727193539418,8.44,145.76,145.71,8.44]
[1727193539626,1.3606,145.81,145.73,8.44]
[1727193539827,8.44,145.78,145.73,8.44]
[1727193540124,8.44,145.78,145.77,3.4302]
[1727193540918,8.44,145.78,145.73,8.44]
[1727193541117,8.44,145.76,145.71,8.44]
[1727193541424,8.44,145.76,145.75,3.4305]
[1727193541831,8.44,145.76,145.72,1.3478]
[1727193542027,8.44,145.74,145.72,1.3478]
[1727193543330,8.44,145.76,145.75,3.4306]
[1727193545032,8.44,145.79,145.75,8.44]
[1727193545832,8.44,145.79,145.74,8.44]
[1727193546031,8.44,145.78,145.77,3.4301]
[1727193547120,8.44,145.78,145.76,3.4303]
[1727193547326,8.44,145.77,145.76,3.4303]
[1727193547621,8.44,145.77,145.73,1.4315]
[1727193547828,8.44,145.75,145.73,1.4315]
[1727193548427,8.44,145.75,145.74,3.4309]
[1727193550433,8.44,145.76,145.72,1.3478]
[1727193550634,8.44,145.76,145.72,9.7878]
[1727193551933,8.44,145.76,145.75,3.4307]
[1727193561446,8.44,145.76,145.74,3.4308]
[1727193561640,8.44,145.75,145.74,3.4308]
[1727193564754,8.44,145.75,145.69,1.3744]
[1727193565047,8.44,145.73,145.69,1.3744]
[1727193565445,8.44,145.73,145.72,3.4312]
[1727193565845,8.44,145.73,145.67,1.338]
[1727193566040,8.44,145.7,145.67,1.338]
[1727193566541,8.44,145.7,145.69,3.4321]
[1727193566738,8.44,145.7,145.64,1.3905]
[1727193566957,8.44,145.68,145.65,7.03339942]
[1727193567243,8.44,145.68,145.64,1.3905]
[1727193567448,8.44,145.68,145.67,3.4324]
[1727193568047,8.44,145.69,145.68,3.4321]
[1727193569749,8.44,145.69,145.67,3.4324]
[1727193569949,8.44,145.68,145.67,3.4324]
[1727193570649,8.44,145.68,145.66,3.4327]
[1727193570851,8.44,145.67,145.66,3.4327]
[1727193573762,8.44,145.67,145.62,2.6973]
[1727193573949,8.44,145.63,145.62,1.3644]
[1727193574253,8.44,145.63,145.62,3.4337]
[1727193574656,8.44,145.63,145.58,2.7133]
[1727193574842,8.44,145.61,145.58,2.7133]
[1727193575356,8.44,145.61,145.6,3.4342]
[1727193576649,8.44,145.61,145.58,1.4032]
[1727193576849,8.44,145.61,145.57,93.20808325]
[1727193576850,8.44,145.59,145.57,93.20808325]
[1727193577455,8.44,145.59,145.58,3.4347]
[1727193577647,8.44,145.6,145.57,93.20808325]
[1727193578657,8.44,145.6,145.59,3.4344]
[1727193581965,8.44,145.61,145.56,9.7437]
[1727193582258,8.44,145.59,145.56,1.3037]
[1727193583358,8.44,145.59,145.58,3.4347]
[1727193584962,8.44,145.59,145.54,2.7997]
[1727193585152,8.44,145.57,145.54,2.7997]
[1727193586356,8.44,145.57,145.56,3.4351]
[1727193586558,8.44,145.59,145.54,11.2397]
[1727193587063,8.44,145.59,145.55,8.44]
[1727193587264,8.44,145.61,145.56,8.44]
[1727193587455,8.44,145.61,145.6,3.434]
[1727193589863,59.64611903,145.66,145.57,8.44]
[1727193590061,8.44,145.62,145.57,8.44]
[1727193590360,8.44,145.62,145.61,3.434]
[1727193590564,8.44,145.62,145.54,2.7997]
[1727193590755,8.44,145.58,145.54,2.7997]
[1727193591665,8.44,145.59,145.54,11.2397]
[1727193591871,8.44,145.58,145.54,2.7997]
[1727193592365,8.44,145.58,145.57,3.4349]
[1727193600084,1.341,145.69,145.61,3.4339]
[1727193601576,20.57,145.77,145.66,3.4326]
[1727193601773,20.57,145.75,145.55,6.8707]
[1727193602789,20.57,145.75,145.64,3.4331]
[1727193603089,22.7477,145.78,145.64,3.4331]
[1727193603695,22.7477,145.78,145.56,1.4359]
[1727193603988,209.39133355,145.91,145.56,1.4359]
[1727193604190,95.76727268,145.9,145.56,89.295]
[1727193604385,13.32727268,145.89,145.57,1.4359]
[1727193605280,13.32727268,145.89,145.65,3.4329]
[1727193605477,1.07802157,145.74,145.57,1.4359]
[1727193605879,1.07802157,145.74,145.68,3.4321]
[1727193606079,1.07802157,145.74,145.64,3.43224122]
[1727193606080,3.5139776,145.74,145.64,3.43224122]
[1727193606283,1.07819669,145.73,145.64,3.3944639]
[1727193606588,3.39171646,145.76,145.65,4.0697]
[1727193606888,1.0,145.88,145.66,3.41884744]
[1727193607182,1.0,145.88,145.65,4.0697]
[1727193607597,1.0,145.88,145.7,3.4318]
[1727193607780,8.43,145.74,145.69,8.43]
[1727193608177,8.43,145.75,145.72,3.4311]
[1727193608583,8.43,145.75,145.73,3.4309]
[1727193609491,8.43,145.77,145.71,8.43]
[1727193609693,1.0,145.88,145.73,8.43]
[1727193609883,8.43,145.79,145.74,8.43]
[1727193610391,8.43,145.8,145.77,3.43]
[1727193610593,8.43,145.8,145.74,8.43]
[1727193610993,8.43,145.8,145.75,8.43]
[1727193611690,3.47912661,145.83,145.66,6.8655]
[1727193611894,8.43,145.78,145.72,8.43]
[1727193612285,16.63779255,145.8,145.7,13.18]
[1727193612590,13.18,145.78,145.74,3.4308]
[1727193612790,13.18,145.78,145.71,1.3769]
[1727193613096,3.49142666,145.79,145.71,1.3769]
[1727193613285,3.49142666,145.79,145.71,2.7351]
[1727193613598,13.18,145.76,145.71,1.3769]
[1727193613785,13.18,145.76,145.67,13.18]
[1727193614291,13.18,145.76,145.72,3.4313]
[1727193615186,3.36341111,145.79,145.66,2.7298]
[1727193615187,13.18,145.78,145.69,13.18]
[1727193616388,13.18,145.78,145.75,3.4305]
[1727193616588,13.18,145.8,145.71,13.18]
[1727193616782,3.45873953,145.83,145.72,15.903]
[1727193616987,13.18,145.84,145.78,3.4298]
[1727193617195,1.07743942,145.83,145.78,3.4298]
[1727193617588,4.50125548,145.83,145.78,3.4298]
[1727193617784,3.42381606,145.83,145.78,3.4298]
[1727193617986,13.18,145.84,145.74,13.18]
[1727193618195,1.07751665,145.83,145.74,13.18]
[1727193619498,1.07751665,145.83,145.79,3.4297]
[1727193621601,16.60656142,145.84,145.79,3.4297]
[1727193621796,1.07768831,145.83,145.79,3.4297]
[1727193622292,16.60656142,145.84,145.74,13.18]
[1727193622600,13.18,145.82,145.73,1.4159]
[1727193622793,16.68099499,145.82,145.77,3.4301]
[1727193623199,13.18,145.84,145.74,13.18]
[1727193623496,13.18,145.84,145.78,3.4298]
[1727193623697,1.07765441,145.83,145.78,3.4298]
[1727193623897,3.4356986,145.82,145.78,3.4298]
[1727193624396,13.18,145.84,145.78,3.4298]
[1727193624600,1.07765057,145.83,145.76,13.18]
[1727193624800,13.18,145.85,145.76,13.18]
[1727193625098,4.44101209,145.84,145.8,3.4293]
[1727193625298,3.36329947,145.84,145.8,3.4293]
[1727193625893,13.18,145.85,145.76,13.18]
[1727193626099,3.45045292,145.85,145.76,13.18]
[1727193626301,14.5995,145.87,145.76,13.18]
[1727193626601,1.07776318,145.86,145.8,3.4293]
[1727193626904,3.51393082,145.85,145.8,3.4293]
[1727193627102,14.5995,145.87,145.8,3.4293]
[1727193627403,1.07775798,145.86,145.8,3.4293]
[1727193627599,3.36272558,145.85,145.76,13.18]
[1727193628002,14.5995,145.87,145.76,13.18]
[1727193628203,1.07773964,145.86,145.8,3.4293]
[1727193628396,3.45879365,145.85,145.8,3.4293]
[1727193628797,14.5995,145.87,145.8,3.4293]
[1727193628993,1.077728,145.86,145.8,3.4293]
[1727193629198,3.46531256,145.85,145.8,3.4293]
[1727193629399,14.5995,145.87,145.8,3.4293]
[1727193629601,1.07773424,145.86,145.8,3.4293]
[1727193630503,14.5995,145.87,145.8,3.4293]
[1727193630703,1.07773192,145.86,145.8,3.4293]
[1727193631906,13.18,145.85,145.75,13.18]
[1727193632106,16.57737531,145.85,145.75,13.18]
[1727193632406,16.57737531,145.85,145.8,3.4295]
[1727193634403,16.57737531,145.85,145.77,13.18]
[1727193635509,59.55740953,145.91,145.79,13.18]
[1727193635715,14.2578301,145.9,145.81,13.18]
[1727193635914,1.0778301,145.89,145.81,13.18]
[1727193636209,1.0778301,145.89,145.83,3.4287]
[1727193636711,1.0778301,145.89,145.81,13.18]
[1727193637108,1.0778301,145.89,145.84,3.4284]
[1727193638918,13.18,145.9,145.84,3.4284]
[1727193639110,1.07729027,145.89,145.84,3.4284]
[1727193639407,13.18,145.9,145.84,3.4284]
[1727193639799,1.0772293,145.89,145.84,3.4284]
[1727193640113,13.18,145.9,145.84,3.4284]
[1727193640405,1.07686974,145.89,145.84,3.4284]
[1727193640620,13.18,145.9,145.84,3.4284]
[1727193643810,13.18,145.88,145.78,17.2208]
[1727193644013,13.18,145.86,145.78,17.2208]
[1727193644217,3.48230731,145.85,145.78,17.2208]
[1727193644604,3.48230731,145.85,145.82,3.429]
[1727193645215,13.18,145.88,145.83,3.4287]
[1727193649417,59.55740953,145.91,145.78,17.2208]
[1727193649620,1.07685012,145.9,145.83,13.18]
[1727193650010,59.55740953,145.91,145.83,13.18]
[1727193651023,59.55740953,145.91,145.85,3.4282]
[1727193652321,1.07704597,145.9,145.8,13.18]
[1727193652628,13.18,145.88,145.8,13.18]
[1727193652819,13.18,145.88,145.84,3.4284]
[1727193654120,13.18,145.88,145.8,13.18]
[1727193654719,13.18,145.85,145.78,4.0408]
[1727193655029,3.42639593,145.84,145.78,4.0408]
[1727193655814,3.42639593,145.84,145.8,3.4294]
[1727193656021,13.18,145.85,145.78,1.3127]
[1727193656314,13.18,145.85,145.78,4.7425]
[1727193656520,16.54993069,145.85,145.78,4.7425]
[1727193658133,16.54993069,145.85,145.72,2.6983]
[1727193658134,13.18,145.83,145.74,13.18]
[1727193658720,13.18,145.83,145.76,3.4302]
[1727193658929,16.5701736,145.83,145.76,3.4302]
[1727193659231,13.18,145.81,145.76,3.4304]
[1727193659621,16.69681537,145.83,145.74,13.18]
[1727193659934,1.07653402,145.82,145.78,3.4299]
[1727193660128,13.18,145.83,145.78,3.4299]
[1727193660333,3.43067947,145.83,145.76,13.18]
[1727193660536,13.18,145.85,145.76,13.18]
[1727193660728,13.18,145.83,145.74,13.18]
[1727193660927,13.18,145.83,145.77,3.43]
[1727193661129,16.69750171,145.83,145.74,13.18]
[1727193662032,16.69750171,145.83,145.76,3.4304]
[1727193662235,13.18,145.81,145.73,1.3515]
[1727193663319,13.18,145.81,145.75,3.4306]
[1727193663925,13.18,145.81,145.73,1.3515]
[1727193664837,1.07674571,145.82,145.74,13.18]
[1727193665629,1.07674571,145.82,145.81,3.4292]
[1727193666437,14.5417,145.9,145.81,13.18]
[1727193666637,60.37890953,145.91,145.83,13.18]
[1727193666933,59.55740953,145.91,145.83,13.18]
[1727193667635,59.55740953,145.91,145.87,3.4278]
[1727193668934,59.55740953,145.91,145.86,3.428]
[1727193670329,14.5417,145.94,145.87,3.4276]
[1727193670540,1.0700835,145.92,145.87,3.4276]
[1727193670737,3.37025262,145.92,145.87,3.4276]
[1727193670943,14.5417,145.94,145.86,3.428]
[1727193671138,1.0700787,145.93,145.86,3.428]
[1727193672444,1.0700787,145.93,145.85,13.18]
[1727193672445,1.0700787,145.93,145.85,16.6082]
[1727193672635,1.0700787,145.93,145.85,13.18]
[1727193672831,1.0700787,145.93,145.86,3.428]
[1727193673036,1.0700787,145.93,145.85,13.18]
[1727193673542,1.0700787,145.93,145.86,1.3487]
[1727193673847,1.0700787,145.93,145.87,13.18]
[1727193674431,16.57323317,145.94,145.86,2.6891]
[1727193674642,1.06873782,145.93,145.86,2.6891]
[1727193675041,16.59711693,145.94,145.87,3.4277]
[1727193675241,1.0687468,145.93,145.86,2.6891]
[1727193675441,13.18,145.95,145.87,13.18]
[1727193675648,1.06882991,145.94,145.87,13.18]
[1727193675948,0.8215,145.97,145.87,13.18]
[1727193676246,1.0690639,145.96,145.87,13.18]
[1727193676546,1.0690639,145.96,145.9,3.427]
[1727193677046,14.2490639,145.96,145.89,3.4273]
[1727193677249,13.18,145.93,145.86,4.0447]
[1727193677753,13.18,145.93,145.88,3.4274]
[1727193677935,13.18,145.93,145.86,4.0447]
[1727193678135,13.18,145.92,145.86,2.6891]
[1727193678645,13.18,145.92,145.86,6.117]
[1727193679241,13.18,145.92,145.86,2.6891]
[1727193679453,13.18,145.92,145.87,3.4278]
[1727193679639,13.18,145.92,145.86,2.6891]
[1727193679839,13.18,145.92,145.86,6.117]
[1727193681648,13.18,145.92,145.86,1.3487]
[1727193681852,13.18,145.92,145.85,3.4282]
[1727193682639,1.06946652,145.91,145.85,3.4282]
[1727193683346,2.1388593,145.91,145.86,3.4281]
[1727193683545,1.06946652,145.91,145.86,3.4281]
[1727193684252,1.06946652,145.91,145.85,3.4282]
[1727193685155,1.06946652,145.91,145.86,3.428]
[1727193685650,1.06946652,145.91,145.87,3.4278]
[1727193686246,1.06946652,145.91,145.86,3.428]
[1727193686652,1.06946652,145.91,145.82,14.4801]
[1727193687661,1.06946652,145.91,145.82,1.3001]
[1727193687847,13.18,145.89,145.82,1.3001]
[1727193688159,3.511668,145.88,145.82,1.3001]
[1727193688656,1.06946652,145.91,145.79,2.7687]
[1727193688657,13.18,145.85,145.79,2.7687]
[1727193688854,13.18,145.84,145.79,2.7687]
[1727193689163,16.55837837,145.84,145.79,2.7687]
[1727193689752,16.55837837,145.84,145.79,1.3249]
[1727193690254,16.55837837,145.84,145.78,3.4298]
[1727193690658,16.55837837,145.84,145.75,1.3788]
[1727193691056,13.18,145.82,145.75,1.3788]
[1727193691959,3.44348479,145.81,145.75,1.3788]
[1727193692952,3.44348479,145.81,145.77,3.4302]
[1727193694153,3.44348479,145.81,145.76,3.4303]
[1727193694561,3.44348479,145.81,145.75,1.3788]
[1727193694749,3.44348479,145.81,145.77,3.4302]
[1727193695459,13.18,145.82,145.78,3.4299]
[1727193695962,16.56949471,145.82,145.76,3.4304]
[1727193696760,13.18,145.8,145.75,3.4305]
[1727193697550,3.40390933,145.79,145.75,3.4305]
[1727193697755,3.40390933,145.79,145.76,3.4304]
[1727193699758,13.18,145.8,145.76,3.4304]
[1727193700162,3.36032944,145.81,145.77,3.4302]
[1727193700362,13.18,145.82,145.77,3.4302]
[1727193700759,3.44680851,145.82,145.78,3.4299]
[1727193700959,13.18,145.83,145.78,3.4299]
[1727193701267,4.56334637,145.82,145.78,3.4299]
[1727193701458,3.49450926,145.82,145.78,3.4299]
[1727193701657,3.49450926,145.82,145.77,3.4301]
[1727193701856,13.18,145.82,145.74,1.4248]
[1727193702057,16.66181194,145.82,145.74,1.4248]
[1727193702565,16.66181194,145.82,145.77,3.4302]
[1727193704659,16.66181194,145.82,145.76,3.4303]
[1727193704863,13.18,145.8,145.74,1.4248]
[1727193705258,35.1794,145.88,145.74,1.4248]
[1727193705259,13.18,145.78,145.74,1.4248]
[1727193705966,16.54204529,145.78,145.74,1.4248]
[1727193706569,13.18,145.81,145.74,1.4248]
[1727193707464,3.40150995,145.8,145.76,3.4303]
[1727193710361,13.18,145.81,145.74,14.6048]
[1727193710972,13.18,145.81,145.78,3.4298]
[1727193711264,13.18,145.81,145.74,14.6048]
[1727193711470,13.18,145.81,145.76,3.4304]
[1727193712957,13.18,145.81,145.77,3.4302]
[1727193714265,3.47004289,145.82,145.74,1.4248]
[1727193714465,13.18,145.83,145.74,1.4248]
[1727193714756,16.57578254,145.83,145.74,1.4248]
[1727193715358,16.57578254,145.83,145.8,3.4295]
[1727193715561,16.57578254,145.83,145.75,13.18]
[1727193716672,16.57578254,145.83,145.79,3.4296]
[1727193717462,13.18,145.85,145.75,13.18]
[1727193717661,13.18,145.85,145.74,1.4248]
[1727193717662,16.60986549,145.85,145.77,13.18]
[1727193717872,3.42986549,145.85,145.77,13.18]
[1727193718066,13.18,145.87,145.78,1.4387]
[1727193718262,1.0684314,145.86,145.78,1.4387]
[1727193718470,13.18,145.85,145.81,3.4291]
[1727193719068,13.18,145.85,145.8,3.4294]
[1727193721283,13.18,145.85,145.81,3.4292]
[1727193723277,13.18,145.89,145.8,1.3654]
[1727193723485,20.6,145.99,145.81,13.18]
[1727193723486,13.18,145.91,145.81,13.18]
[1727193723682,13.18,145.93,145.83,13.18]
[1727193724280,1.06862992,145.92,145.84,1.37]
[1727193724675,13.18,145.93,145.87,3.4276]
[1727193725483,13.18,145.93,145.86,3.4279]
[1727193725681,13.18,145.91,145.86,3.4279]
[1727193727279,13.18,145.91,145.87,3.4277]
[1727193727474,13.18,145.92,145.87,3.4277]
[1727193727886,13.18,145.92,145.88,3.4276]
[1727193729085,13.18,145.92,145.87,3.4277]
[1727193729280,13.18,145.92,145.84,1.37]
[1727193729281,13.18,145.91,145.84,1.37]
[1727193729585,13.18,145.91,145.85,3.4282]
[1727193729787,13.18,145.91,145.84,1.37]
[1727193730180,13.18,145.91,145.86,3.4279]
[1727193731579,13.18,145.91,145.84,1.37]
[1727193731776,13.18,145.89,145.82,13.18]
[1727193732172,13.18,145.89,145.84,3.4285]
[1727193733883,4.74061355,145.94,145.8,2.7609]
[1727193734084,13.18,145.86,145.8,2.7609]
[1727193734288,16.55608889,145.86,145.8,2.7609]
[1727193734489,3.37608889,145.86,145.8,15.9409]
[1727193734791,13.18,145.89,145.8,15.9409]
[1727193735383,13.18,145.89,145.8,2.7609]
[1727193735586,13.18,145.87,145.8,1.3654]
[1727193736689,13.18,145.87,145.83,3.4287]
[1727193736986,13.18,145.89,145.8,1.3654]
[1727193737592,13.18,145.89,145.84,3.4284]
[1727193737792,13.18,145.89,145.8,1.3654]